Cogmind - Beta 11.2 @@@ ROGUE MODE // 2023.01.04 @ 23:08:50 // Winter2022/Polymind Player: OJ Result: Destroyed by G-34 Mercenary with Small Laser Performance ------------- Evolutions (1) 500 Regions Visited (3) 600 Robots Destroyed (19) 95 Value Destroyed (547) 547 Prototype IDs (0) 0 Alien Tech Used (0) 0 Bonus (1263) 1263 TOTAL SCORE: 2735 Bonus ------- Polymind Skill 1041 Pacifist 200 High Alert Combat Kills 38 Friendly Fire -16 Cogmind --------- Core Integrity 0/400 Matter 0/0 Energy 9/100 System Corruption 0% Temperature Cool (12) Movement Core (50) Location -9/Materials Parts ------- > --- POWER (1) -------- (None) > --- PROPULSION (2) --- (None) > --- UTILITY (3) ------ (None) > --- WEAPON (2) ------- (None) > --- INVENTORY (0) ---- (None) Peak State ------------ > --- POWER ------------ Light Angular Momentum Engine > --- PROPULSION ------- Carbon-fiber Leg Carbon-fiber Leg > --- UTILITY ---------- Improved Heat Sink Improved Heat Sink > --- WEAPON ----------- Beamcaster > --- INVENTORY -------- (None) [Rating: 22] Favorites ----------- Power Light Angular Momentum Engine Engine Light Angular Momentum Engine Propulsion Carbon-fiber Leg Treads Light Treads Leg Carbon-fiber Leg Hover Unit Hover Unit Utility Improved Heat Sink Device Improved Heat Sink Processor Visual Processing Unit Protection Light Armor Plating Weapon Beamcaster Energy Gun Beamcaster Ballistic Gun Heavy Assault Rifle Build | -11 -10 -10 -9 ------- Run | Scr Mat Min Mat Slots Evolved . | . . . . Power . | . . . . Propulsion . | . . . . Utility . | . . . . Weapon . | . . . . Parts Attached . | . . . . Power . | . . . . Engine . | . . . . Core . | . . . . Reactor . | . . . . Propulsion . | . . . . Treads . | . . . . Leg . | . . . . Wheel . | . . . . Hover . | . . . . Flight . | . . . . Utility . | . . . . Device . | . . . . Storage . | . . . . Processor . | . . . . Hackware . | . . . . Protection . | . . . . Artifact . | . . . . Weapon . | . . . . Energy Gun . | . . . . Energy Cannon . | . . . . Ballistic Gun . | . . . . Ballistic Cannon . | . . . . Launcher . | . . . . Special Weapon . | . . . . Impact Weapon . | . . . . Slashing Weapon . | . . . . Piercing Weapon . | . . . . Special Melee Weapon . | . . . . Unidentified Prototypes . | . . . . Parts Lost 11 | . . . 11 Power 2 | . . . 2 Propulsion 3 | . . . 3 Utility 3 | . . . 3 Weapon 3 | . . . 3 Highest Loss Streak 8 | . . . 8 To Critical Strikes . | . . . . Average Slot Usage (%) 89 | . 50 100 93 Engine 13 | . 8 16 13 Treads 6 | . . . 8 Leg 15 | . . 4 19 Hover 5 | . 16 28 . Device 24 | . 8 18 28 Processor 5 | . 16 28 . Protection 2 | . . . 3 Energy Gun 10 | . . 2 13 Ballistic Gun 3 | . . . 4 Naked Turns 40 | . 39 1 . Heaviest Build 18 | . 4 16 18 Greatest Support 40 | 3 12 30 40 Greatest Overweight (x) 2 | . . . 2 Average Overweight (x) . | . . . . Largest Inventory Capacity 1 | . . 1 1 Average Capacity . | . . . 1 Most Carried 1 | . . 1 1 Average Carried . | . . . . Final Capacity 1 | . . 1 . Final Carried 1 | . . 1 . Class Distribution -------------------- 46% | Grunt 30% | Sentry 15% | Watcher 7% | Cogmind Dominant Class ---------------- Cogmind | -10/Materials Watcher | -10/Mines Grunt | -9/Materials Resources | -11 -10 -10 -9 ----------- Run | Scr Mat Min Mat Matter Collected 63 | . . . 63 Remotely . | . . . . Salvage Created 674 | . . . 674 Parts 45 | . . . 45 Haulers Intercepted . | . . . . Recyclers Shooed . | . . . . Parts Field Recycled . | . . . . Retrieved Matter . | . . . . Parts Self-Destructed . | . . . . Prevented . | . . . . Kills | -11 -10 -10 -9 ------- Run | Scr Mat Min Mat Combat Hostiles Destroyed 16 | . . . 16 Guns 16 | . . . 16 Classes Destroyed 7 | . . . 7 Builder 1 | . . . 1 Recycler 1 | . . . 1 Watcher 1 | . . . 1 Swarmer 4 | . . . 4 Grunt 8 | . . . 8 Duelist 1 | . . . 1 Sentry 3 | . . . 3 Best Kill Streak 7 | . . . 7 Combat Bots Only 4 | . . . 4 Max Kills in Single Turn 1 | . . . 1 Gunslinging . | . . . . Exploded . | . . . . Melee . | . . . . Uniques/NPCs Destroyed . | . . . . Combat | -11 -10 -10 -9 -------- Run | Scr Mat Min Mat Damage Taken 1527 | . . . 1527 Core 403 | . . . 403 Absorbed by Shields . | . . . . Core Remaining (%) 100 | 100 . 100 . Volleys Fired 57 | . . . 57 Largest 2 | . . . 2 Hottest 79 | . . . 79 Shots Fired 73 | . . . 73 Gun 73 | . . . 73 Cannon . | . . . . Launcher . | . . . . Special . | . . . . Kinetic 16 | . . . 16 Thermal 57 | . . . 57 Explosive . | . . . . Electromagnetic . | . . . . Robot Hit Streak 9 | . . . 9 Robot Miss Streak 3 | . . . 3 Penetration Max . | . . . . Secondary Targets . | . . . . Shots Hit Robots 49 | . . . 49 Core Hits 27 | . . . 27 Critical Kills . | . . . . Critical Parts Destroyed . | . . . . Critical Strikes 6 | . . . 6 Burn 6 | . . . 6 Melee Attacks . | . . . . Impact . | . . . . Slashing . | . . . . Piercing . | . . . . Sneak Attacks . | . . . . Combat Hostiles . | . . . . Follow-up Attacks . | . . . . Damage Inflicted 1030 | . . . 1030 Guns 1020 | . . . 1020 Cannons . | . . . . Explosions . | . . . . Melee . | . . . . Ramming 10 | . . . 10 Kinetic 169 | . . . 169 Thermal 851 | . . . 851 Explosive . | . . . . Electromagnetic . | . . . . Impact . | . . . . Slashing . | . . . . Piercing . | . . . . Highest Corruption . | . . . . Average Corruption . | . . . . Corruption Purged . | . . . . Corruption Blocked . | . . . . Overload Shots . | . . . . Overflow Damage . | . . . . Projectiles . | . . . . Explosions . | . . . . Melee . | . . . . Knockbacks . | . . . . Impact . | . . . . Kinetic . | . . . . Secondary . | . . . . Self-Inflicted Damage . | . . . . Shots . | . . . . Rammed 1 | . . . 1 Targets Rammed 4 | . . . 4 Kicked 3 | . . . 3 Crushed . | . . . . Highest Temperature 199 | . . . 199 Average Temperature 64 | . . . 64 Received Heat Transfer 654 | . . . 654 Siege Activations . | . . . . Robots Corrupted . | . . . . Combat Hostiles . | . . . . Parts Fried . | . . . . Impact Corruptions . | . . . . Robots Melted . | . . . . Combat Hostiles . | . . . . Parts Melted 5 | . . . 5 Heat Transferred 2072 | . . . 2072 Parts Sabotaged . | . . . . Parts Stolen . | . . . . Parts Stripped . | . . . . Power Chain Reactions . | . . . . Missiles Intercepted . | . . . . Alert | -11 -10 -10 -9 ------- Run | Scr Mat Min Mat Peak Influence 488 | . . 30 488 Initial 11 | . . . 11 Average 173 | . . 3 233 Maximum Alert Level 2 | . . . 2 Low Security (%) 57 | 100 100 100 41 Level 1 30 | . . . 41 Level 2 12 | . . . 16 Level 3 . | . . . . Level 4 . | . . . . Level 5 . | . . . . High Security . | . . . . Max Security . | . . . . Squads Dispatched 5 | . 1 1 3 Investigation 1 | . . . 1 Extermination . | . . . . Reinforcement 2 | . 1 . 1 Assault 2 | . . 1 1 Garrison . | . . . . Intercept . | . . . . Searches Triggered . | . . . . Construction Impeded . | . . . . Haulers Reinforced . | . . . . Active Scanning Responses . | . . . . Cargo Convoy Interrupts . | . . . . Stealth | -11 -10 -10 -9 --------- Run | Scr Mat Min Mat Distress Signals 3 | . . . 3 Communications Jammed . | . . . . Distress Signals . | . . . . Times Spotted 39 | . 1 2 36 Peak Tracking Total 11 | . 1 1 11 Tactical Retreats . | . . . . Traps | -11 -10 -10 -9 ------- Run | Scr Mat Min Mat Traps Triggered . | . . . . Indirectly . | . . . . Trap Hack Attempts . | . . . . Triggered . | . . . . Disarmed . | . . . . Reprogrammed . | . . . . Reused . | . . . . Traps Extracted . | . . . . Installed . | . . . . Triggered 3 | . . . 3 Machines | -11 -10 -10 -9 ---------- Run | Scr Mat Min Mat Machines Disabled . | . . . . Max in Single Turn . | . . . . Machines Sabotaged . | . . . . Garrisons Compromised . | . . . . Overloaded Fab Kills . | . . . . Hacking | -11 -10 -10 -9 --------- Run | Scr Mat Min Mat Machines Accessed . | . . . . Terminals . | . . . . Fabricators . | . . . . Repair Stations . | . . . . Recycling Units . | . . . . Scanalyzers . | . . . . Garrison Access . | . . . . Total Hacks . | . . . . Successful . | . . . . Failed . | . . . . Catastrophic . | . . . . Database Lockouts . | . . . . Manual . | . . . . Terminals . | . . . . Fabricators . | . . . . Repair Stations . | . . . . Recycling Units . | . . . . Scanalyzers . | . . . . Garrison Access . | . . . . Terminal Hacks . | . . . . Fabricator Hacks . | . . . . Repair Station Hacks . | . . . . Recycling Unit Hacks . | . . . . Scanalyzer . | . . . . Garrison Access Hacks . | . . . . Unauthorized Hacks . | . . . . Terminals . | . . . . Fabricators . | . . . . Repair Stations . | . . . . Recycling Units . | . . . . Scanalyzers . | . . . . Garrison Access . | . . . . Data Cores Recovered . | . . . . Used . | . . . . Hacking Detections . | . . . . Full Trace Events . | . . . . Feedback Events . | . . . . Feedback Blocked . | . . . . Robot Schematics Acquired . | . . . . Robots Built . | . . . . Authchips . | . . . . Time . | . . . . Total Robot Build Rating . | . . . . Part Schematics Acquired . | . . . . Parts Built . | . . . . Authchips . | . . . . Time . | . . . . Total Part Build Rating . | . . . . Parts Repaired . | . . . . Time . | . . . . Parts Recycled . | . . . . Recycled Matter . | . . . . Retrieved Matter . | . . . . Retrieved Components . | . . . . Parts Scanalyzed . | . . . . Part Schematics Acquired . | . . . . Parts Damaged . | . . . . Bothacking | -11 -10 -10 -9 ------------ Run | Scr Mat Min Mat Used RIF Installer . | . . . . Robots Hacked 2 | . 1 . 1 Non-combat 1 | . 1 . . Combat 1 | . . . 1 Robot Hacks Applied 3 | . 2 . 1 map_route 1 | . 1 . . mark_security 1 | . 1 . . find_shortcuts 1 | . . . 1 Relay Couplers Released . | . . . . Fabnet Peak Effective % . | . . . . Robots Rewired . | . . . . Allies Hacked . | . . . . Hacks Repelled . | . . . . Allies | -11 -10 -10 -9 -------- Run | Scr Mat Min Mat Total Allies . | . . . . Largest Group . | . . . . Highest-Rated Group . | . . . . Highest-Rated Ally . | . . . . Total Orders . | . . . . Ally Attacks . | . . . . Total Damage . | . . . . Kills . | . . . . Allies Corrupted . | . . . . Allies Melted . | . . . . Intel | -11 -10 -10 -9 ------- Run | Scr Mat Min Mat Robot Analysis Total 3 | . 1 1 1 Derelict Logs Recovered 1 | . . 1 . Drone Launches . | . . . . Drone Recoveries . | . . . . Exploration | -11 -10 -10 -9 ------------- Run | Scr Mat Min Mat Turns Passed 545 | 9 63 70 403 Spaces Moved 431 | 18 118 115 180 Core 106 | 18 74 1 13 Treads 63 | . . . 63 Legs 111 | . . 7 104 Wheels . | . . . . Hover 151 | . 44 107 . Flight . | . . . . Fastest Speed 50 | 50 50 50 50 Average Speed 86 | 50 52 59 130 Slowest Speed 160 | 50 56 120 160 Overloaded Moves . | . . . . Propulsion Burnouts . | . . . . Robots Hopped . | . . . . Cave-ins Triggered . | . . . . Exploration Rate (%) 22 | 3 27 32 27 Regions Visited 3 Branch Regions 1 Pre-discovered Areas . | . . . . Known Exits Taken 2 | . 1 1 . Unknown Exits Taken 1 | 1 . . . Scrap Searched 1 | . . 1 . Spaces Dug . | . . . . Terrain Destroyed . | . . . . Melee . | . . . . Projectile . | . . . . AOE . | . . . . Terrain Rammed . | . . . . Walls Destroyed . | . . . . Machines Disabled . | . . . . Actions | -11 -10 -10 -9 --------- Run | Scr Mat Min Mat Total 526 | 17 118 116 275 Wait 36 | . 1 1 34 Move 428 | 17 117 114 180 Hop . | . . . . Pick Up 1 | . . 1 . Fast Attach . | . . . . Attach . | . . . . Detach . | . . . . Swap . | . . . . Drop . | . . . . Fire 57 | . . . 57 Melee . | . . . . Ram . | . . . . Kick 3 | . . . 3 Crush 1 | . . . 1 Escape Stasis . | . . . . Rewire . | . . . . Trap . | . . . . Miscellaneous . | . . . . Route ------- -11/Scrapyard -10/Materials (discovered 2 exits: *Min x2) -10/Mines (discovered 2 exits: *Mat x2) -9/Materials History --------- Turn | Location | Event 4 | -11/Scrapyard | Discovered new exit (range 13) 10 | -11/Scrapyard | Entered Materials 10 | -10/Materials | Discovered new exit (range 14) 49 | -10/Materials | Discovered new exit (range 32) 72 | -10/Materials | Identified exit to Mines 73 | -10/Materials | Entered Mines 84 | -10/Mines | Met a Derelict bent on vengeance 94 | -10/Mines | Discovered new exit (range 8) 98 | -10/Mines | Identified exit to Materials 104 | -10/Mines | Learned Materials trap positions 131 | -10/Mines | Met a Derelict testing a Signal Generator 132 | -10/Mines | Discovered exit to Materials (range 12) 140 | -10/Mines | Found Signal Generator 143 | -10/Mines | Entered Materials 144 | -9/Materials | Loaded intel: 17 trap records 411 | -9/Materials | Lost 3 parts (1p1n1w) 497 | -9/Materials | Core integrity fell below 50% 537 | -9/Materials | Core integrity fell below 20% 546 | -9/Materials | Destroyed by G-34 Mercenary with Small Laser Last Messages --------------- 00499_ Acquired 3 matter. 00506_ M-13 Machinist repairs G-34 Mercenary. 00507_ K-01 Serf collects debris. 00508_ Acquired 3 matter. 00509_ Heat Sink destroyed. 00510_ K-01 Serf collects debris. 00512_ M-13 Machinist repairs Ion Engine. 00512_ Beam Rifle destroyed. 00513_ K-01 Serf collects debris. 00514_ M-13 Machinist repairs Aluminum Leg. 00514_ Lgt. Armor Plating destroyed. 00517_ Lgt. Treads destroyed. 00517_ K-01 Serf collects debris. 00527_ Hvy. Assault Rifle destroyed. 00528_ M-13 Machinist repairs G-34 Mercenary. 00538_ Lgt. Treads destroyed. 00540_ M-13 Machinist repairs G-34 Mercenary. 00540_ Imp. Ion Engine destroyed. 00546_ Heat Sink destroyed. 00546_ Lost control of Y-45 Defender. Map ----- +----------------------------------------------------+ | ???????????# #????# #?? ???# #??????????" | | ???????????# ###### #??? ????# #?????????"" | | ???????????# %#??? ???## ##????????? | | ???????????# [ ^% #####+##### ####??????+# | | ???????????# =%** ^=! ? | | ???????????# %=################## % | | ???????????# ==#? ! #??????# % ? | | ???????????# # ! ?????????# ###+### ? | | ???????????# + ?????????????#######??? ??^??? | | ???????????# ! #????????????????????????????+????? | | ???????????#!%*#?????????????????????????????????? | | ??????????## [ ##?????#######????????????????????? | | ??????????# ####### [#????????????????????? | | ??????????# "" #????????????????????? | | ??????????# T #????????????????????? | | ??????????# #????????????????????? | | ??????????# ####### #????????????????????? | | ??????????#######????####+###????????????????????? | | ?????????????????????# #????????????????????? | | ?????????????????????# """ #????????????????????? | | ?????????????????????# """ #????????????????????? | | ?????????????????????# """ #????????????????????? | | ?????????????????????# ggg #????????????????????? | | ?????????????????????# s #????????????????????? | | ?????????????????????# #????????????????????? | | ?????????????????????# @ #????????????????????? | | ?????????????????????####s#+#????????????????????? | | ????????????????????????o #????????????????????? | | ???????????????????????? +????????????????????? | | ???????????????????????######????????????????????? | | ?????????????????????????????????????????????????? | | ?????????????????????????????????????????????????? | | ?????????????????????????????????????????????????? | | ?????????????????????????????????????????????????? | | ?????????????????????????????????????????????????? | | ?????????????????????????????????????????????????? | | ?????????????????????????????????????????????????? | | ?????????????????????????????????????????????????? | | ?????????????????????????????????????????????????? | | ?????????????????????????????????????????????????? | | ?????????????????????????????????????????????????? | | ?????????????????????????????????????????????????? | | ?????????????????????????????????????????????????? | | ?????????????????????????????????????????????????? | | ?????????????????????????????????????????????????? | | ?????????????????????????????????????????????????? | | ?????????????????????????????????????????????????? | | ?????????????????????????????????????????????????? | | | | | +----------------------------------------------------+ Best States ------------- Heat Dissipation 51 Energy Generation 23 Energy Capacity 215 Matter Stores 100 Matter Capacity 100 Sight Range 18 Robot Scan Range 14 Terrain Scan Density 10 Armor Coverage 150 Resistance: EX 50 Resistance: I 25 Evasion (%) 55 Recoil Reduction 2 Item Schematics ----------------- None Robot Schematics ------------------ None Fabricated ------------ Nothing Alien Tech Used ----------------- None Achievements -------------- None Challenges ------------ None Polymind | -11 -10 -10 -9 ---------- Run | Scr Mat Min Mat Hosts 3 | . 1 1 1 Combat Hostiles 1 | . . . 1 Allies 1 | . . 1 . Unique Host Classes 3 | . 1 1 1 Average Host Suspicion 76 | . 12 36 87 Unsuspicious Activity 7 | . 6 . 1 Returns to Shadow . | . . . . Fuzzy Dispatches . | . . . . Protomatter Created 76 | . . 8 68 Used 49 | . 12 14 23 Decayed 43 | . . 8 35 Highest Spend 23 | . 12 14 23 Top 5 Hosts by Kills: I4-320(g) (-10/Mines: 10) Y-45 Defender (-9/Materials: 6) Game ------ Seed IntegratedDisposableRailgun Manual? 0 Play Time 00:09:09 Cumulative 80.3 hours Start 2023.01.04 @ 22:59:54 End 2023.01.04 @ 23:08:50 Sessions 1 Manual Loads 0 Difficulty Rogue Special Mode Winter2022/Polymind Game No. 63 Rogue 63 Adventurer 0 Explorer 0 Win Type - Total 0 Types 0/0/0/0/0/0/0/0/0 Lore% 38 Gallery% 56 Achievement% 47 Wizard Run 0 Options --------- ASCII 0 Keyboard 1 Movement Mouse Keybinds 0 Fullscreen 1 Font 18/SmallcapsGlow Map View 76x50 Tactical HUD 1 Map Filters NONE Filters NONE Steam 1 RUN: 674cef17-8b43-47fe-a0b9-9201937f25c5